bitfinex-derivatives/quotes_SOLF0:USTF0_20250630
["timestamp","ask_amount","ask_price","bid_price","bid_amount"]
[1751278547968,1.81965494,150.04,150.03,6.6638]
[1751278548172,6.6628,150.06,150.03,6.6638]
[1751278548368,6.6622,150.07,150.04,6.6633]
[1751278548576,1.81965494,150.05,150.04,6.6633]
[1751278549483,1.81965494,150.05,150.03,6.6636]
[1751278549679,33.5,150.11,150.01,8.04785529]
[1751278549884,1.81965494,150.05,150.02,1.81965494]
[1751278550483,33.5,150.11,150.02,1.81965494]
[1751278550688,1.81965494,150.06,150.02,8.04785529]
[1751278550888,6.6616,150.08,150.05,6.6626]
[1751278551092,1.81965494,150.06,150.05,6.6626]
[1751278553591,6.6614,150.09,150.05,6.6626]
[1751278553798,6.6614,150.09,150.06,6.6623]
[1751278554092,1.81965494,150.07,150.06,6.6623]
[1751278554482,1.81965494,150.07,150.05,6.6627]
[1751278554687,1.81965494,150.06,150.05,6.6627]
[1751278557296,6.6621,150.07,150.04,6.6632]
[1751278557498,1.81965494,150.05,150.04,6.6632]
[1751278557894,1.81965494,150.05,150.02,6.22820035]
[1751278558093,1.81965494,150.03,150.0,39.60820035]
[1751278558490,1.81965494,150.03,150.01,6.6644]
[1751278558894,1.81965494,150.02,150.01,6.6644]
[1751278561494,33.5,150.11,150.0,41.42785529]
[1751278561694,1.81965494,150.09,150.05,1.81965494]
[1751278561901,1.81965494,150.09,150.05,35.19965494]
[1751278562095,8.48105494,150.09,150.06,6.6623]
[1751278562798,8.48105494,150.09,150.07,6.662]
[1751278563594,1.81965494,150.09,150.07,6.662]
[1751278563799,6.6609,150.1,150.07,6.662]
[1751278563999,6.6609,150.1,150.08,6.6616]
[1751278564202,9.5016242,150.11,150.08,6.6616]
[1751278565803,6.6608,150.1,150.08,6.6616]
[1751278566905,9.5016242,150.11,150.08,6.6616]
[1751278567802,6.6607,150.1,150.08,6.6616]
[1751278568000,2.8411242,150.11,150.08,6.6616]
[1751278569501,6.6607,150.1,150.08,6.6616]
[1751278574606,6.6607,150.1,150.07,6.6618]
[1751278577019,2.8411242,150.11,150.07,6.6618]
[1751278578522,6.661,150.1,150.07,6.6618]
[1751278578722,2.8411242,150.11,150.08,6.6616]
[1751278579318,9.5017242,150.11,150.08,6.6616]
[1751278580119,36.2211242,150.14,150.07,2.8411242]
[1751278580314,36.2211242,150.14,150.07,9.06932455]
[1751278580721,6.6596,150.13,150.1,6.6604]
[1751278583926,6.6599,150.12,150.1,6.6604]
[1751278585326,6.6599,150.12,150.09,40.7008]
[1751278585720,8.47752854,150.12,150.09,40.7008]
[1751278586425,8.47752854,150.12,150.1,6.6606]
[1751278586626,6.6599,150.12,150.1,6.6606]
[1751278586927,8.47752854,150.12,150.1,6.6606]
[1751278593634,1.81762854,150.11,150.09,34.04]
[1751278593833,1.81762854,150.11,150.06,6.22820035]
[1751278593834,1.81762854,150.1,150.06,36.15762854]
[1751278594137,1.81762854,150.09,150.07,6.6616]
[1751278594535,1.81762854,150.09,150.06,34.34]
[1751278595132,1.81762854,150.09,150.07,6.662]
[1751278595334,8.47902854,150.09,150.06,34.34]
[1751278595529,1.81762854,150.09,150.06,34.34]
[1751278595933,50.4643696,150.16,150.08,1.81762854]
[1751278596241,1.81762854,150.14,150.1,1.81762854]
[1751278596537,1.81762854,150.15,150.1,36.15762854]
[1751278596737,8.47632854,150.15,150.1,36.15762854]
[1751278597136,8.47632854,150.15,150.11,1.81762854]
[1751278597332,8.47632854,150.15,150.12,6.6596]
[1751278597736,6.6587,150.15,150.12,6.6596]
[1751278598544,49.30477546,150.16,150.11,6.66]
[1751278599144,6.6592,150.14,150.11,6.66]
[1751278601240,6.6592,150.14,150.12,6.6597]
[1751278601444,6.6586,150.15,150.12,6.6597]
[1751278606442,6.6591,150.14,150.12,6.6597]
[1751278606641,133.13911945,150.17,150.13,6.6594]
[1751278607142,6.6587,150.15,150.13,6.6594]
[1751278607334,2.83911945,150.15,150.1,34.34]
[1751278607534,130.3,150.17,150.1,34.34]
[1751278607535,2.83911945,150.13,150.1,34.34]
[1751278608045,132.6522,150.17,150.1,34.34]
[1751278608242,2.83911945,150.14,150.1,34.34]
[1751278609644,6.6594,150.13,150.11,6.6601]
[1751278610746,6.6592,150.14,150.12,6.6598]
[1751278610938,2.83911945,150.16,150.1,34.34]
[1751278611847,2.83911945,150.16,150.1,40.5607599]
[1751278612244,2.83911945,150.16,150.13,6.6591]
[1751278612940,9.49741945,150.16,150.1,40.5607599]
[1751278613644,9.49741945,150.16,150.13,6.659]
[1751278613845,9.49741945,150.16,150.1,40.5607599]
[1751278614543,6.6585,150.15,150.13,6.6591]
[1751278614748,2.83911945,150.16,150.1,40.5607599]
[1751278614947,2.83911945,150.16,150.1,34.34]
[1751278616646,6.6592,150.14,150.12,6.6598]
[1751278617347,6.6592,150.14,150.11,6.66]
[1751278618851,6.6595,150.13,150.11,6.66]
[1751278619046,6.6595,150.13,150.1,41.0005]
[1751278620441,6.6595,150.13,150.1,47.2212599]
[1751278620750,6.6598,150.12,150.1,47.2212599]
[1751278620954,6.6598,150.12,150.09,12.8816599]
[1751278621153,6.6598,150.12,150.09,6.2207599]
[1751278621946,6.6598,150.12,150.1,6.6605]
[1751278622247,6.6596,150.13,150.1,6.6605]
[1751278622654,2.83911945,150.15,150.1,6.6605]
[1751278622853,6.66,150.12,150.1,6.6605]
[1751278623049,2.83911945,150.13,150.09,12.8817599]
[1751278623255,2.83911945,150.13,150.09,6.2207599]
[1751278623462,6.66,150.12,150.09,6.2207599]
[1751278623756,2.83911945,150.13,150.09,12.8817599]
[1751278624049,6.6605,150.11,150.09,12.8817599]
[1751278626456,6.66,150.12,150.1,6.6607]
[1751278629855,1.81787962,150.11,150.1,6.6607]
[1751278631555,6.66,150.12,150.1,6.6607]
[1751278631766,8.47747962,150.13,150.11,6.6603]
[1751278631951,34.16,150.14,150.09,8.03863952]
[1751278632261,8.47727962,150.13,150.09,8.03863952]
[1751278632658,8.47727962,150.13,150.1,6.6606]
[1751278634260,1.81787962,150.12,150.1,6.6606]
[1751278635361,8.47767962,150.12,150.1,6.6606]
[1751278637760,8.47847962,150.11,150.09,6.2207599]
[1751278637957,35.97787962,150.1,150.06,8.32661901]
[1751278638156,1.81787962,150.07,150.02,8.32661901]
[1751278638456,1.81787962,150.05,150.04,6.6631]
[1751278639859,2.84277521,150.07,150.01,8.32661901]
[1751278640360,9.50487521,150.07,150.04,6.6631]
[1751278640560,9.50487521,150.07,150.01,8.32661901]
[1751278641365,9.50487521,150.07,150.04,6.6631]
[1751278641566,6.6621,150.07,150.0,44.79361901]
[1751278641866,2.84277521,150.07,150.05,6.6626]
[1751278643565,2.84277521,150.07,150.06,6.6625]
[1751278645169,2.84277521,150.07,150.05,6.6627]
[1751278647764,9.50487521,150.07,150.05,6.6627]
[1751278648472,2.84277521,150.07,150.05,6.6627]
[1751278650366,9.50487521,150.07,150.05,6.6627]
[1751278652976,2.84277521,150.07,150.05,6.6627]
[1751278653172,2.84277521,150.09,150.0,39.30977521]
[1751278653373,2.84277521,150.09,150.02,2.84277521]
[1751278653679,2.84277521,150.09,150.03,4.3577]
[1751278654572,9.50407521,150.09,150.07,6.6617]
[1751278654972,9.50407521,150.09,150.03,4.3577]
[1751278655679,6.6618,150.08,150.03,4.3577]
[1751278656270,8.29789953,150.17,150.04,50.00927521]
[1751278656473,2.84277521,150.13,150.05,2.2732]
[1751278656675,2.84277521,150.13,150.05,5.11597521]
[1751278657075,33.84,150.17,150.05,5.11597521]
[1751278657377,2.84277521,150.13,150.05,5.11597521]
[1751278658071,6.66,150.12,150.09,6.6611]
[1751278659276,6.6603,150.11,150.09,6.6611]
[1751278659777,6.6608,150.1,150.08,6.6614]
[1751278661782,2.84277521,150.11,150.05,2.2732]
[1751278662179,2.84277521,150.11,150.06,6.6622]
[1751278663681,6.6616,150.08,150.06,6.6622]
[1751278667584,2.84277521,150.09,150.05,2.2732]
[1751278667787,33.84,150.09,150.02,2.84277521]
[1751278668285,40.5011,150.09,150.04,2.84277521]
[1751278668888,40.5011,150.09,150.07,6.6618]
[1751278671397,6.6617,150.08,150.06,6.6623]
[1751278672095,6.6617,150.08,150.05,6.6627]
[1751278672297,6.6621,150.07,150.05,6.6627]
[1751278672702,33.84,150.09,150.05,6.6627]
[1751278673405,33.84,150.09,150.04,6.663]
[1751278673701,6.6623,150.07,150.02,11.16939422]
[1751278673901,6.6623,150.07,150.02,2.84277521]
[1751278675198,6.6623,150.07,150.04,6.663]
[1751278676397,6.6623,150.07,150.05,6.6628]
[1751278676793,6.6617,150.08,150.05,6.6628]
[1751278677407,6.662,150.07,150.04,6.6629]
[1751278677597,6.662,150.07,150.02,2.84277521]
[1751278678005,6.662,150.07,150.05,6.6626]
[1751278679008,6.6617,150.08,150.05,6.6626]
[1751278679396,33.84,150.09,150.05,6.6626]
[1751278679805,6.6618,150.08,150.06,6.6623]
[1751278680904,6.6618,150.08,150.05,6.6625]
[1751278681805,8.48047913,150.08,150.06,6.6622]
[1751278682707,42.31987913,150.09,150.07,6.6619]
[1751278683100,8.47987913,150.09,150.07,6.6619]
[1751278683498,33.84,150.12,150.06,1.81867913]
[1751278683701,1.81867913,150.11,150.07,1.81867913]
[1751278683897,1.81867913,150.11,150.05,8.32661901]
[1751278684106,8.47947913,150.1,150.07,6.6615]
[1751278684307,1.81867913,150.1,150.07,6.6615]
[1751278684609,8.47987913,150.09,150.07,6.6617]
[1751278687311,6.6615,150.08,150.04,43.74529814]
[1751278687510,8.48017913,150.08,150.04,41.92661901]
[1751278687701,8.48017913,150.08,150.03,43.74529814]
[1751278687908,6.6615,150.08,150.03,41.92661901]
[1751278688508,6.6615,150.08,150.06,6.6623]
[1751278691716,6.6622,150.07,150.03,33.6]
[1751278692417,6.6622,150.07,150.05,6.6626]
[1751278694321,6.6617,150.08,150.05,6.6626]
[1751278694715,6.6617,150.08,150.06,6.6623]
[1751278697020,6.6612,150.09,150.06,6.6623]
[1751278697222,6.6612,150.09,150.07,6.6617]
[1751278697621,2.84190017,150.12,150.05,2.84190017]
[1751278697820,33.6,150.15,150.09,2.84190017]
[1751278698015,36.44190017,150.18,150.11,9.07431233]
[1751278698215,43.09930017,150.18,150.15,6.6581]
[1751278699122,6.6575,150.17,150.15,6.6581]
[1751278699318,36.44190017,150.18,150.15,6.6581]
[1751278699725,43.09920017,150.18,150.15,6.6581]
[1751278700627,6.6576,150.17,150.15,6.6581]
[1751278701021,6.6576,150.17,150.14,6.6586]
[1751278701825,6.658,150.16,150.13,6.6591]
[1751278702028,2.84190017,150.16,150.1,6.23241216]
[1751278702221,33.6,150.18,150.09,9.07431233]
[1751278702421,2.84190017,150.16,150.12,6.6597]
[1751278703127,6.6589,150.14,150.12,6.6597]
[1751278703323,6.6589,150.14,150.11,6.66]
[1751278703527,2.84190017,150.16,150.09,9.07431233]
[1751278703726,2.84190017,150.14,150.08,39.83241216]
[1751278703930,2.84190017,150.14,150.09,6.6607]
[1751278704129,6.6599,150.12,150.09,6.6607]
[1751278704630,6.6595,150.13,150.07,9.07431233]
[1751278704831,6.6595,150.13,150.07,42.67431233]
[1751278705129,6.6595,150.13,150.1,6.6603]
[1751278706431,6.6598,150.12,150.1,6.6603]
[1751278709737,6.6595,150.13,150.1,6.6603]
[1751278710340,6.6597,150.12,150.1,6.6603]
[1751278711038,6.6597,150.12,150.09,6.6608]
[1751278711334,2.84190017,150.14,150.09,6.6608]
[1751278711528,2.84190017,150.14,150.08,6.23241216]
[1751278711931,6.6595,150.13,150.1,6.6602]
[1751278713343,2.84190017,150.16,150.08,6.23241216]
[1751278713634,2.84190017,150.13,150.05,9.07431233]
[1751278713841,6.6599,150.12,150.09,6.6607]
[1751278714029,6.6599,150.12,150.07,6.23241216]
[1751278714737,6.6599,150.12,150.06,41.99621216]
[1751278714933,6.659,150.14,150.07,9.07431233]
[1751278715134,6.659,150.14,150.11,6.6599]
[1751278715639,6.659,150.14,150.12,6.6596]
[1751278715840,36.44190017,150.15,150.08,8.59911216]
[1751278716038,2.84190017,150.17,150.09,9.07431233]
[1751278716240,2.84190017,150.17,150.08,4.6133]
[1751278716241,2.84190017,150.17,150.1,42.67431233]
[1751278716743,33.6,150.18,150.12,2.84190017]
[1751278717042,6.6562,150.2,150.13,6.23241216]
[1751278717231,6.6562,150.2,150.16,6.6576]
[1751278717435,40.2559,150.21,150.14,38.71720017]
[1751278717636,40.2559,150.21,150.14,44.94961233]
[1751278717845,40.2559,150.21,150.17,6.6571]
[1751278718235,6.6565,150.2,150.15,2.2466]
[1751278719440,33.6,150.21,150.17,6.6572]
[1751278719634,33.6,150.21,150.15,2.2466]
[1751278719837,6.6568,150.19,150.16,6.6578]
[1751278721637,6.6568,150.19,150.17,6.6575]
[1751278721940,33.6,150.24,150.16,2.84190017]
[1751278722145,33.6,150.24,150.17,2.3117]
[1751278722535,33.6,150.24,150.18,33.6]
[1751278723041,40.2546,150.24,150.2,6.6559]
[1751278723446,33.6,150.24,150.18,33.6]
[1751278723739,33.6,150.24,150.18,36.44190017]
[1751278723944,2.84190017,150.25,150.18,36.44190017]
[1751278724140,6.6537,150.26,150.2,2.84190017]
[1751278725140,33.58,150.27,150.2,2.84190017]
[1751278726346,6.654,150.25,150.22,6.6549]
[1751278726647,33.58,150.27,150.2,2.84190017]
[1751278727046,6.6537,150.26,150.22,6.6548]
[1751278727246,6.6537,150.26,150.2,2.84190017]
[1751278728951,6.6539,150.25,150.23,6.6548]
[1751278729250,36.42190017,150.27,150.2,2.84190017]
[1751278729450,6.654,150.25,150.2,2.84190017]
[1751278729650,6.654,150.25,150.23,6.6548]
[1751278730052,6.6537,150.26,150.23,6.6548]
[1751278734152,43.07510017,150.27,150.24,6.6543]
[1751278736856,6.6527,150.28,150.2,2.84190017]
[1751278737058,134.32800017,150.3,150.22,36.42190017]
[1751278737356,6.6529,150.28,150.23,33.58]
[1751278737548,5.10800017,150.3,150.23,33.58]
[1751278737756,2.84190017,150.3,150.23,33.58]
[1751278737953,129.32,150.29,150.26,6.6533]
[1751278739156,6.6523,150.29,150.27,6.653]
[1751278739759,9.49380017,150.3,150.27,6.653]
[1751278740957,6.6522,150.29,150.27,6.653]
[1751278741957,2.84190017,150.29,150.21,4.6166]
[1751278742152,2.84190017,150.26,150.21,4.6166]
[1751278742353,2.84190017,150.24,150.18,2.1866]
[1751278742557,129.24,150.25,150.17,33.56]
[1751278742757,2.84190017,150.23,150.17,33.56]
[1751278742958,2.84190017,150.23,150.17,36.40190017]
[1751278743352,2.84190017,150.23,150.17,33.56]
[1751278743556,6.656,150.21,150.19,6.6565]
[1751278743759,2.84190017,150.23,150.17,33.56]
[1751278744358,6.6555,150.22,150.19,6.6562]
[1751278744559,6.6555,150.22,150.17,33.56]
[1751278745461,6.6555,150.22,150.19,6.6563]
[1751278745655,6.6555,150.22,150.17,33.56]
[1751278745960,6.6555,150.22,150.19,6.6562]
[1751278746165,6.6555,150.22,150.17,33.56]
[1751278746459,6.6555,150.22,150.19,6.6562]
[1751278746652,6.6555,150.22,150.17,33.56]
[1751278747261,6.6555,150.22,150.2,6.6561]
[1751278748860,6.655,150.23,150.2,6.6561]
[1751278749068,2.84190017,150.24,150.22,6.6551]
[1751278749656,33.56,150.27,150.17,36.40190017]
[1751278749657,9.49610017,150.25,150.23,6.6548]
[1751278750261,6.6544,150.24,150.22,6.655]
[1751278750461,2.84190017,150.25,150.22,6.655]
[1751278750657,9.49600017,150.25,150.23,6.6547]
[1751278752558,2.84190017,150.25,150.23,6.6547]
[1751278752766,2.84190017,150.25,150.24,6.6544]
[1751278753162,9.49560017,150.26,150.24,6.6544]
[1751278754960,43.05520017,150.27,150.25,6.6539]
[1751278755160,40.2133,150.27,150.25,6.6539]
[1751278755372,43.05520017,150.27,150.25,6.6539]
[1751278756268,6.6535,150.26,150.24,6.654]
[1751278756573,36.40190017,150.27,150.24,6.654]
[1751278757272,43.05520017,150.27,150.25,6.6538]
[1751278757468,36.40190017,150.27,150.21,33.58]
[1751278757872,40.2133,150.27,150.25,6.6539]
[1751278758074,43.05520017,150.27,150.25,6.6539]
[1751278759068,9.49520017,150.27,150.25,6.6539]
[1751278762077,6.6528,150.28,150.26,6.6533]
[1751278762474,36.42190017,150.29,150.22,8.55061216]
[1751278762777,6.6531,150.27,150.25,6.6537]
[1751278763779,6.6529,150.28,150.26,6.6535]
[1751278763975,33.58,150.31,150.23,6.23241216]
[1751278764171,36.42190017,150.31,150.23,6.23241216]
[1751278764375,6.6524,150.29,150.26,6.6532]
[1751278765673,6.6524,150.29,150.27,6.653]
[1751278766281,6.6519,150.3,150.27,6.653]
[1751278767681,6.6522,150.29,150.27,6.653]
[1751278769680,9.49410017,150.29,150.27,6.653]
[1751278769878,2.84190017,150.29,150.23,6.23241216]
[1751278770076,2.84190017,150.27,150.22,8.55061216]
[1751278770379,9.49500017,150.27,150.22,8.55061216]
[1751278771080,9.49500017,150.27,150.24,6.654]
[1751278771880,6.6535,150.26,150.23,6.6546]
[1751278772076,2.84190017,150.27,150.23,6.6546]
[1751278772277,2.84190017,150.25,150.21,33.58]
[1751278772481,9.49610017,150.25,150.21,33.58]
[1751278773375,6.6542,150.25,150.23,6.6546]
[1751278773775,9.49560017,150.26,150.23,6.6546]
[1751278773976,33.58,150.31,150.21,33.58]
[1751278774187,6.6533,150.27,150.22,6.23241216]
[1751278774575,6.6533,150.27,150.25,6.6539]
[1751278777386,2.84190017,150.28,150.21,39.81241216]
[1751278777584,2.84190017,150.26,150.21,39.81241216]
[1751278778085,6.6542,150.25,150.23,6.6546]
[1751278778286,2.84190017,150.26,150.21,39.81241216]
[1751278778587,9.49560017,150.26,150.24,6.6543]
[1751278779385,6.6539,150.25,150.23,6.6547]
[1751278780088,6.6542,150.25,150.22,6.6549]
[1751278780289,6.6542,150.25,150.21,33.58]
[1751278780685,6.6542,150.25,150.23,6.6546]
[1751278781591,2.84190017,150.24,150.21,33.58]
[1751278781788,2.84190017,150.24,150.19,6.23241216]
[1751278781989,6.655,150.23,150.2,6.6558]
[1751278782288,6.655,150.23,150.18,44.43121216]
[1751278782686,6.655,150.23,150.21,6.6556]
[1751278783289,9.49650017,150.24,150.21,6.6556]
[1751278783489,2.84190017,150.24,150.21,6.6556]
[1751278783689,6.6551,150.23,150.2,6.656]
[1751278783891,2.84190017,150.22,150.2,6.656]
[1751278784493,9.49720017,150.22,150.2,6.656]
[1751278784682,2.84190017,150.22,150.2,6.656]
[1751278784887,2.84190017,150.22,150.18,38.1988]
[1751278784888,2.84190017,150.22,150.21,6.6557]
[1751278785193,2.84190017,150.22,150.18,38.1988]
[1751278786091,2.84190017,150.22,150.2,6.6558]
[1751278786687,9.49720017,150.22,150.2,6.6558]
[1751278787095,6.6553,150.22,150.2,6.6558]
[1751278788794,9.49690017,150.23,150.18,38.1988]
[1751278789095,9.49690017,150.23,150.18,44.43121216]
[1751278789697,6.6546,150.24,150.18,44.43121216]
[1751278789886,33.56,150.27,150.18,44.43121216]
[1751278790092,2.84190017,150.26,150.2,6.23241216]
[1751278790491,6.6537,150.26,150.24,6.6542]
[1751278793492,33.56,150.27,150.24,6.6542]
[1751278793698,40.2133,150.27,150.24,6.6542]
[1751278793897,43.05520017,150.27,150.24,6.6542]
[1751278796204,6.6536,150.26,150.24,6.6542]
[1751278798500,6.6539,150.25,150.23,6.6546]
[1751278798699,2.84190017,150.25,150.2,6.23241216]
[1751278799305,6.6546,150.24,150.22,6.6553]
[1751278801899,6.6546,150.24,150.2,6.23241216]
[1751278802113,6.6546,150.24,150.21,6.6555]
[1751278802405,6.6549,150.23,150.21,6.6555]
[1751278803109,6.6549,150.23,150.2,6.6559]
[1751278803506,6.6546,150.24,150.21,6.6553]
[1751278803703,2.84190017,150.25,150.21,6.6553]
[1751278804111,6.6545,150.24,150.22,6.6552]
[1751278804502,6.6549,150.23,150.19,6.23241216]
[1751278808014,9.49610017,150.25,150.23,6.6546]
[1751278808214,2.84190017,150.25,150.23,6.6546]
[1751278808618,6.6538,150.26,150.23,6.6546]
[1751278812419,6.6539,150.25,150.23,6.6546]
[1751278814119,9.49560017,150.26,150.23,6.6546]
[1751278815022,9.49560017,150.26,150.24,6.6542]
[1751278816127,2.84190017,150.28,150.25,6.6539]
[1751278816327,2.84190017,150.28,150.23,6.23241216]
[1751278816723,6.6534,150.27,150.24,6.654]
[1751278817627,6.6534,150.27,150.25,6.6539]
[1751278817822,9.49480017,150.28,150.23,6.23241216]
[1751278818432,9.49480017,150.28,150.25,6.6536]
[1751278818828,6.6529,150.28,150.25,6.6536]
[1751278819429,36.38190017,150.29,150.25,6.6536]
[1751278819626,6.6531,150.27,150.25,6.6536]
[1751278820026,36.38190017,150.29,150.24,6.6542]
[1751278820529,6.6537,150.26,150.24,6.6542]
[1751278822026,6.6532,150.27,150.24,6.6542]
[1751278825636,6.6528,150.28,150.26,6.6535]
[1751278830437,6.6528,150.28,150.25,6.6537]
[1751278830438,6.6527,150.28,150.25,6.6537]
[1751278830638,33.54,150.29,150.25,6.6537]
[1751278830832,2.84190017,150.28,150.25,6.6537]
[1751278831033,9.49490017,150.28,150.25,6.6537]
[1751278831337,2.84190017,150.28,150.25,6.6537]
[1751278832438,6.6531,150.27,150.25,6.6537]
[1751278833240,9.49470017,150.28,150.25,6.6537]
[1751278833437,6.6528,150.28,150.26,6.6535]
[1751278834437,6.653,150.27,150.25,6.6537]
[1751278837232,6.653,150.27,150.24,6.6542]
[1751278838842,6.653,150.27,150.25,6.6538]
[1751278841748,8.46706467,150.27,150.25,6.6538]
[1751278844149,8.46706467,150.27,150.24,6.6541]
[1751278844544,6.6535,150.26,150.24,6.6541]
[1751278845247,8.46726467,150.27,150.25,6.6539]
[1751278847447,1.81406467,150.27,150.26,6.6535]
[1751278848543,6.6528,150.28,150.26,6.6535]
[1751278848744,8.46686467,150.28,150.26,6.6535]
[1751278848945,6.6524,150.29,150.27,6.653]
[1751278849244,8.46646467,150.29,150.27,6.653]
[1751278850855,8.46666467,150.28,150.26,6.6533]
[1751278851252,1.81406467,150.28,150.26,6.6533]
[1751278853156,6.6524,150.29,150.27,6.6528]
[1751278853359,1.81406467,150.29,150.27,6.6528]
[1751278854058,1.81406467,150.29,150.28,6.6526]
[1751278854259,1.81406467,150.29,150.25,8.04647683]
[1751278854759,1.81406467,150.29,150.27,6.6528]
[1751278856161,8.46626467,150.29,150.27,6.6528]
[1751278857962,6.6526,150.28,150.26,6.6533]
[1751278858660,8.46646467,150.29,150.27,6.653]
[1751278858963,8.46646467,150.29,150.25,8.04647683]
[1751278859362,8.46646467,150.29,150.26,12.88571216]
[1751278859764,6.6527,150.28,150.26,12.88571216]
[1751278859962,1.81406467,150.27,150.26,6.23241216]
[1751278860155,1.81406467,150.27,150.23,4.5074]
[1751278860156,1.81406467,150.27,150.25,6.23241216]
[1751278860365,8.46706467,150.27,150.25,6.23241216]
[1751278860559,129.08,150.31,150.25,6.23241216]
[1751278860760,1.81406467,150.28,150.25,6.23241216]
[1751278861157,8.46686467,150.28,150.26,6.6533]
[1751278863660,1.81406467,150.28,150.26,6.6533]
[1751278864270,8.46666467,150.28,150.26,6.6533]
[1751278864767,4.44132313,150.27,150.26,6.6533]
[1751278870268,33.52,150.32,150.25,6.23241216]
[1751278870269,1.81406467,150.29,150.25,6.23241216]
[1751278870467,1.81406467,150.29,150.27,6.23241216]
[1751278870663,1.81406467,150.29,150.26,6.23241216]
[1751278870870,1.81406467,150.29,150.27,6.653]
[1751278871170,1.81406467,150.28,150.27,6.653]
[1751278872675,1.81393751,150.28,150.27,6.653]
[1751278875674,1.81393751,150.29,150.25,8.04634967]
[1751278875869,1.81393751,150.29,150.26,6.23241216]
[1751278876270,1.81393751,150.29,150.27,6.6526]
[1751278876864,1.81393751,150.29,150.26,6.23241216]
[1751278877577,1.81393751,150.29,150.28,6.6526]
[1751278878176,6.652,150.3,150.28,6.6526]
[1751278878375,1.81393751,150.29,150.28,6.6526]
[1751278879277,6.652,150.3,150.28,6.6526]
[1751278879471,1.81393751,150.29,150.28,6.6526]
[1751278879878,1.81393751,150.29,150.27,6.6528]
[1751278880878,8.46613751,150.29,150.27,6.6528]
[1751278882179,1.81393751,150.29,150.28,6.6526]
[1751278884584,6.6519,150.3,150.28,6.6526]
[1751278884784,1.81393751,150.29,150.28,6.6526]
[1751278887087,8.46583751,150.3,150.28,6.6526]
[1751278887585,6.6522,150.29,150.27,6.6528]
[1751278888489,8.46583751,150.3,150.27,6.6528]
[1751278888887,1.81393751,150.29,150.27,6.6528]
[1751278893190,1.81393751,150.29,150.28,6.6526]
[1751278894388,1.81393751,150.29,150.26,6.23241216]
[1751278894593,1.81393751,150.29,150.27,6.6528]
[1751278900998,128.98,150.31,150.25,6.23241216]
[1751278900999,135.6315,150.31,150.25,6.23241216]
[1751278901199,1.81393751,150.3,150.25,6.23241216]
[1751278902603,6.6523,150.29,150.27,6.6528]
[1751278907512,8.46593751,150.3,150.26,6.23241216]
[1751278908003,1.81393751,150.3,150.26,6.23241216]
[1751278908205,1.81393751,150.28,150.25,6.23241216]
[1751278909117,8.46683751,150.28,150.25,12.88591216]
[1751278909411,1.81393751,150.28,150.25,6.23241216]
[1751278910613,1.81393751,150.28,150.26,6.6532]
[1751278911015,6.6525,150.29,150.26,6.6532]
[1751278911214,1.81393751,150.28,150.26,6.6532]
[1751278911814,1.81387662,150.28,150.26,6.6532]
[1751278912612,8.46637662,150.29,150.27,6.653]
[1751278912910,1.81387662,150.3,150.27,6.23241216]
[1751278913103,1.81387662,150.31,150.28,6.6523]
[1751278913312,6.6515,150.31,150.28,6.6523]
[1751278913511,1.81387662,150.32,150.28,8.04628878]
[1751278913716,6.6507,150.33,150.3,6.6516]
[1751278914106,128.94,150.34,150.3,6.6516]
[1751278914313,1.81387662,150.32,150.3,6.6516]
[1751278915513,8.46477662,150.32,150.3,6.6516]
[1751278916118,1.81387662,150.32,150.3,6.6516]
[1751278917417,6.6511,150.32,150.29,6.6519]
[1751278917820,8.46497662,150.32,150.29,6.6519]
[1751278919120,6.6513,150.31,150.29,6.6519]
[1751278919915,1.81387662,150.31,150.29,6.6519]
[1751278920116,1.81387662,150.31,150.3,6.6517]
[1751278920516,1.81387662,150.32,150.28,8.04628878]
[1751278920717,1.81387662,150.32,150.3,6.6513]
[1751278921123,8.46477662,150.32,150.3,6.6513]
[1751278922227,8.46477662,150.32,150.29,6.6519]